bitfinex-derivatives/quotes_BTCF0:USTF0_20251207
["timestamp","ask_amount","ask_price","bid_price","bid_amount"]
[1765129248085,0.69534,90844.0,90843.0,0.7062]
[1765129248284,0.68926,90841.0,90840.0,0.0110074]
[1765129248487,0.68926,90837.0,90836.0,0.39167839]
[1765129248884,0.68926,90837.0,90836.0,0.3629679]
[1765129249488,0.68926,90837.0,90836.0,0.7172079]
[1765129249985,0.004,90837.0,90836.0,1.0772079]
[1765129250179,0.004,90837.0,90836.0,1.10591839]
[1765129250382,0.004,90837.0,90836.0,1.0772079]
[1765129251084,0.005,90837.0,90836.0,1.0772079]
[1765129251493,0.005,90837.0,90836.0,0.7172079]
[1765129251681,0.004,90837.0,90836.0,0.8772079]
[1765129252090,0.68926,90836.0,90835.0,0.011008]
[1765129252394,0.68926,90836.0,90832.0,0.02875993]
[1765129252395,0.68926,90833.0,90832.0,0.02875993]
[1765129252583,0.68926,90833.0,90828.0,0.02875993]
[1765129252584,0.7002688,90829.0,90828.0,0.02875993]
[1765129252892,0.7002688,90829.0,90825.0,0.02875993]
[1765129252893,0.7002691,90826.0,90825.0,0.02875993]
[1765129253088,0.19968,90828.0,90816.0,0.05704409]
[1765129253089,0.7002702,90817.0,90816.0,0.02875993]
[1765129253295,0.68926,90814.0,90813.0,0.52044]
[1765129253685,0.19968,90816.0,90810.0,0.011011]
[1765129253686,0.68926,90811.0,90810.0,0.04904039]
[1765129254394,0.68926,90811.0,90810.0,0.75524039]
[1765129254594,0.68926,90811.0,90810.0,0.717211]
[1765129254992,0.3608,90817.0,90815.0,0.0110105]
[1765129255187,0.3608,90817.0,90815.0,0.7172105]
[1765129255393,0.3608,90817.0,90816.0,0.7062]
[1765129255992,0.00016513,90826.0,90825.0,0.68255]
[1765129256197,0.00016513,90826.0,90825.0,0.9635592]
[1765129256394,0.00016513,90826.0,90825.0,0.7435592]
[1765129256793,0.66132513,90826.0,90825.0,0.3411792]
[1765129257095,0.66132513,90826.0,90825.0,0.0110092]
[1765129257289,0.66132513,90826.0,90816.0,0.07847704]
[1765129257290,0.66116,90824.0,90822.0,0.02877767]
[1765129257493,0.00016513,90826.0,90822.0,0.02877767]
[1765129257494,0.66116,90823.0,90822.0,0.02877767]
[1765129258386,0.66116,90822.0,90821.0,0.02877767]
[1765129258997,0.66116,90822.0,90821.0,0.72233737]
[1765129259194,0.66116,90822.0,90821.0,0.6935597]
[1765129259389,0.001,90824.0,90823.0,0.68255]
[1765129259586,0.33167,90825.0,90824.0,0.0110094]
[1765129259787,0.33167,90825.0,90824.0,0.3411794]
[1765129260195,0.33167,90825.0,90824.0,0.6935594]
[1765129260898,0.66116,90822.0,90819.0,0.01101]
[1765129261198,0.8665,90816.0,90815.0,0.03802939]
[1765129261388,0.8665,90816.0,90815.0,0.02879319]
[1765129262104,0.8665,90816.0,90815.0,0.3411805]
[1765129262289,0.8665,90816.0,90815.0,0.0130105]
[1765129262495,0.8665,90816.0,90815.0,0.002]
[1765129262693,0.8665,90816.0,90815.0,0.0130105]
[1765129263293,0.8665,90816.0,90815.0,0.0140105]
[1765129264004,0.33167,90816.0,90815.0,0.6965605]
[1765129264404,0.66116,90816.0,90815.0,0.6965605]
[1765129264596,0.66116,90816.0,90815.0,0.003]
[1765129264597,0.8665,90816.0,90815.0,0.003]
[1765129265497,0.66116,90816.0,90815.0,0.33317]
[1765129266299,0.8665,90816.0,90815.0,0.003]
[1765129266502,0.3608,90818.0,90817.0,0.68255]
[1765129266704,0.66132513,90826.0,90825.0,0.6935592]
[1765129267202,0.66132513,90826.0,90825.0,0.3411792]
[1765129267609,0.66132513,90826.0,90825.0,0.6935592]
[1765129268001,0.66332513,90826.0,90825.0,0.6935592]
[1765129269202,0.66332513,90826.0,90825.0,0.3411792]
[1765129269910,0.66332513,90826.0,90825.0,0.0110092]
[1765129270312,0.66332513,90826.0,90816.0,0.01726098]
[1765129270512,0.66332513,90826.0,90816.0,0.23726098]
[1765129270713,0.66116,90817.0,90816.0,0.3411803]
[1765129271013,0.66116,90817.0,90816.0,0.8735603]
[1765129271810,0.70009,90813.0,90812.0,0.75587019]
[1765129272015,0.70009,90813.0,90812.0,1.12587019]
[1765129272911,0.70009,90813.0,90812.0,0.75587019]
[1765129273117,0.34419,90813.0,90812.0,1.12587019]
[1765129273416,0.70009,90813.0,90812.0,0.75587019]
[1765129273914,0.70009,90813.0,90812.0,0.79587019]
[1765129274216,0.70009,90813.0,90812.0,0.79887019]
[1765129274416,0.70009,90813.0,90812.0,0.7208408]
[1765129274713,0.70499,90819.0,90818.0,0.7178401]
[1765129274918,0.3608,90819.0,90818.0,1.0878401]
[1765129275114,0.70499,90819.0,90818.0,1.0878401]
[1765129275616,1.06089,90819.0,90818.0,1.0878401]
[1765129276213,1.06089,90819.0,90818.0,0.3658801]
[1765129276715,0.3608,90819.0,90814.0,0.0110105]
[1765129277016,0.3608,90819.0,90818.0,0.70783]
[1765129277216,0.70499,90819.0,90818.0,0.73883]
[1765129277418,1.06089,90819.0,90818.0,0.002]
[1765129277816,1.06089,90819.0,90818.0,0.362]
[1765129278011,1.06089,90819.0,90818.0,0.002]
[1765129278521,1.06089,90819.0,90818.0,0.35687]
[1765129278722,1.06089,90819.0,90818.0,0.35587]
[1765129279619,1.0719,90819.0,90818.0,0.002]
[1765129280010,1.0719,90819.0,90812.0,0.03839074]
[1765129280206,0.70009,90813.0,90812.0,0.03839074]
[1765129280518,0.70009,90813.0,90808.0,0.00013179]
[1765129280519,0.70009,90809.0,90808.0,0.06818718]
[1765129281319,0.70009,90807.0,90806.0,0.00027531]
[1765129282520,0.70009,90807.0,90804.0,0.03850311]
[1765129282521,0.70009,90805.0,90804.0,0.03850311]
[1765129282823,0.70009,90804.0,90802.0,0.03850311]
[1765129283016,0.70009,90803.0,90802.0,0.03850311]
[1765129283417,0.70009,90802.0,90801.0,0.03850311]
[1765129283913,7.948e-05,90807.0,90795.0,0.03330432]
[1765129283914,0.70009,90796.0,90795.0,0.03330432]
[1765129284122,0.70009,90779.0,90778.0,0.0110149]
[1765129284421,0.70009,90773.0,90772.0,0.7178456]
[1765129284718,0.00013179,90779.0,90778.0,0.7178449]
[1765129284924,0.00016522,90782.0,90781.0,0.70683]
[1765129285223,0.00016522,90782.0,90781.0,1.58699]
[1765129285522,0.00016522,90782.0,90781.0,0.62016]
[1765129285523,0.70025522,90782.0,90781.0,0.62016]
[1765129285721,0.70025522,90782.0,90781.0,0.52016]
[1765129285914,0.70025522,90782.0,90781.0,0.52116]
[1765129286228,0.70025522,90782.0,90781.0,0.001]
[1765129286729,0.70009,90779.0,90778.0,0.0110149]
[1765129287320,0.70009,90773.0,90772.0,0.003]
[1765129287527,0.70009,90767.0,90766.0,0.36107544]
[1765129288827,0.70009,90767.0,90766.0,0.36607544]
[1765129289024,0.7111063,90767.0,90766.0,0.00727544]
[1765129289218,1.2312263,90767.0,90766.0,0.00727544]
[1765129289722,1.2312263,90767.0,90760.0,0.00012901]
[1765129289723,0.2051,90772.0,90760.0,0.70695901]
[1765129289921,0.70009,90767.0,90766.0,0.7178463]
[1765129290223,0.70009,90762.0,90760.0,0.00012901]
[1765129290419,0.90519,90761.0,90760.0,0.00012901]
[1765129291029,0.3608,90764.0,90763.0,0.70683]
[1765129291330,0.70009,90764.0,90763.0,0.90683]
[1765129291721,0.70009,90764.0,90763.0,1.0678468]
[1765129292032,0.90519,90772.0,90771.0,0.3658858]
[1765129292428,0.90519,90772.0,90760.0,0.07747704]
[1765129292625,0.3608,90765.0,90764.0,0.50004]
[1765129292929,0.70009,90781.0,90780.0,0.2610347]
[1765129293331,0.70021481,90781.0,90780.0,0.2610347]
[1765129293534,0.70021481,90781.0,90780.0,0.0110147]
[1765129294221,0.70921481,90781.0,90780.0,0.0110147]
[1765129294827,0.70921481,90781.0,90770.0,0.07747704]
[1765129294828,0.70009,90778.0,90777.0,0.0110151]
[1765129295026,0.70009,90778.0,90777.0,0.03]
[1765129295218,0.90519,90768.0,90767.0,0.7811963]
[1765129295423,0.70009,90763.0,90762.0,0.0110168]
[1765129295937,0.70009,90752.0,90751.0,0.0110182]
[1765129296120,0.70019165,90752.0,90751.0,0.0110182]
[1765129296326,0.70009,90747.0,90746.0,0.0110187]
[1765129296535,0.70009,90741.0,90740.0,0.3608]
[1765129296830,0.2051,90744.0,90743.0,0.50004]
[1765129297030,0.70009,90745.0,90744.0,0.0110191]
[1765129297220,0.70009,90745.0,90744.0,0.8910591]
[1765129297425,0.00010165,90752.0,90751.0,0.5110582]
[1765129297426,0.34429165,90752.0,90751.0,0.5110582]
[1765129297627,0.34429165,90752.0,90751.0,0.8910582]
[1765129298535,0.70219165,90752.0,90751.0,0.7410582]
[1765129298935,0.70219165,90752.0,90751.0,0.7420582]
[1765129299137,0.34629165,90752.0,90751.0,0.7420582]
[1765129299724,0.70219165,90752.0,90751.0,0.7420582]
[1765129299923,0.70219165,90752.0,90751.0,0.2420182]
[1765129300822,0.70219165,90752.0,90751.0,0.4920382]
[1765129301225,0.70219165,90752.0,90751.0,0.2420182]
[1765129301621,0.00210165,90752.0,90751.0,0.7420582]
[1765129302731,0.00016522,90761.0,90760.0,0.5110571]
[1765129303034,0.00016522,90761.0,90760.0,0.9110571]
[1765129304224,0.00616522,90761.0,90760.0,0.9110571]
[1765129308531,0.52008,90796.0,90795.0,0.5110529]
[1765129308532,0.33774,90796.0,90795.0,0.5110529]
[1765129308738,0.68078,90796.0,90795.0,0.6310329]
[1765129308932,0.68078,90796.0,90795.0,0.6710329]
[1765129309137,0.68078,90796.0,90795.0,0.93210981]
[1765129309829,1.04158,90801.0,90800.0,0.2610323]
[1765129310030,1.04158,90801.0,90800.0,0.5810323]
[1765129310332,0.68078,90801.0,90800.0,0.0110123]
[1765129311138,0.68078,90796.0,90795.0,0.0110128]
[1765129311338,0.68078,90796.0,90795.0,0.4310128]
[1765129311838,0.004,90801.0,90790.0,0.13008428]
[1765129311839,0.68078,90791.0,90790.0,0.0110135]
[1765129312037,0.68078,90788.0,90787.0,0.52004]
[1765129312239,0.68078,90787.0,90786.0,0.00016522]
[1765129312440,0.68078,90787.0,90786.0,0.42016522]
[1765129313031,0.68078,90787.0,90786.0,0.00016522]
[1765129313442,0.68078,90787.0,90776.0,0.3608]
[1765129313443,0.68078,90777.0,90776.0,0.3608]
[1765129314732,0.68178,90777.0,90776.0,0.3608]
[1765129315129,0.68178,90777.0,90776.0,0.61099]
[1765129315432,0.001,90777.0,90776.0,1.26118]
[1765129316235,0.001,90777.0,90776.0,1.2721952]
[1765129316736,0.00016522,90786.0,90785.0,0.5113941]
[1765129316934,0.00016522,90786.0,90785.0,1.2621941]
[1765129318242,0.00016522,90786.0,90785.0,1.2651941]
[1765129318545,0.00016522,90786.0,90785.0,1.30366817]
[1765129318743,0.00016522,90786.0,90785.0,1.2651941]
[1765129319146,0.00016522,90786.0,90785.0,1.30367165]
[1765129319444,0.00016522,90786.0,90785.0,1.7850341]
[1765129320035,0.65521522,90786.0,90785.0,1.2846541]
[1765129320237,0.65521522,90786.0,90785.0,0.5338541]
[1765129320443,0.65521522,90786.0,90785.0,0.0140141]
[1765129320645,0.65521522,90786.0,90785.0,0.003]
[1765129320946,0.3608,90792.0,90791.0,0.56002]
[1765129321136,0.20529,90828.0,90815.0,0.56002]
[1765129321335,0.32619,90821.0,90820.0,0.0110098]
[1765129321535,0.65505,90821.0,90820.0,0.3210098]
[1765129321837,0.86034,90828.0,90827.0,0.011009]
[1765129322247,0.86034,90828.0,90827.0,0.291019]
[1765129322654,0.86034,90828.0,90827.0,0.011009]
[1765129323649,0.00016522,90837.0,90833.0,0.0110082]
[1765129323834,0.65505,90834.0,90833.0,0.7210182]
[1765129324146,0.32619,90834.0,90833.0,1.1218282]
[1765129324339,0.65505,90834.0,90833.0,0.5618082]
[1765129324848,0.65505,90834.0,90833.0,1.3118282]
[1765129325036,0.65505,90834.0,90833.0,0.7818182]
[1765129325236,0.65705,90834.0,90833.0,0.5018082]
[1765129326145,0.66105,90834.0,90833.0,0.3718082]
[1765129326343,0.66105,90834.0,90833.0,0.4618082]
[1765129326646,0.65505,90825.0,90824.0,0.0110093]
[1765129327139,0.65505,90825.0,90824.0,0.9810293]
[1765129327345,0.65505,90825.0,90824.0,0.4210093]
[1765129327539,0.65505,90825.0,90824.0,0.41]
[1765129327738,0.65505,90819.0,90815.0,0.0110104]
[1765129328139,0.65505,90819.0,90818.0,0.65017522]
[1765129328337,0.65505,90819.0,90818.0,0.93018522]
[1765129328542,0.001,90825.0,90824.0,0.5710294]
[1765129328738,0.001,90825.0,90824.0,1.3218294]
[1765129329841,0.0110063,90850.0,90824.0,1.3218294]
[1765129329842,0.05852695,90888.0,90824.0,1.01660137]
[1765129330044,0.3608,90905.0,90885.0,0.011002]
[1765129330242,0.65505,90907.0,90900.0,0.00099999]
[1765129330441,0.65505,90902.0,90901.0,0.48004]
[1765129330637,0.65505,90902.0,90901.0,0.83004]
[1765129330838,0.65505,90902.0,90901.0,0.86952]
[1765129331039,0.32619,90902.0,90901.0,0.86952]
[1765129331544,0.85706,90909.0,90908.0,0.0109992]
[1765129331752,0.85706,90909.0,90908.0,0.2709992]
[1765129332137,0.85706,90909.0,90902.0,0.0109999]
[1765129332138,0.20201,90909.0,90902.0,0.0109999]
[1765129332343,0.20201,90909.0,90907.0,0.0109993]
[1765129332344,0.67341,90908.0,90907.0,0.0109993]
[1765129332939,0.67341,90908.0,90907.0,0.3717993]
[1765129333139,0.32687,90908.0,90907.0,0.3717993]
[1765129333556,3e-08,90911.0,90910.0,0.58202]
[1765129333754,3e-08,90911.0,90910.0,1.00202]
[1765129334141,0.3608,90944.0,90920.0,0.00099999]
[1765129334340,0.67368495,90926.0,90925.0,0.3717971]
[1765129334539,0.67368495,90926.0,90925.0,0.6217971]
[1765129334741,0.00027495,90926.0,90925.0,1.2038171]
[1765129335451,0.20217503,90935.0,90934.0,0.0109961]
[1765129335649,0.00016503,90935.0,90934.0,1.3438161]
[1765129336039,0.00016503,90935.0,90934.0,1.8630961]
[1765129336245,0.00016503,90935.0,90934.0,1.8230961]
[1765129336851,0.00016503,90935.0,90934.0,1.8230161]
[1765129337049,0.00416503,90935.0,90934.0,1.8230161]
[1765129337257,0.00416503,90935.0,90934.0,1.3038161]
[1765129337444,0.00416503,90935.0,90934.0,1.5320061]
[1765129338043,0.19933,90960.0,90947.0,0.3020045]
[1765129338252,0.87274,90960.0,90959.0,0.010993]
[1765129339847,0.87274,90960.0,90950.0,0.1312492]
[1765129339848,0.67341,90951.0,90950.0,0.00116492]
[1765129340154,0.67341,90951.0,90950.0,0.00016493]
[1765129340951,0.67541,90951.0,90950.0,0.00016493]
[1765129341854,0.68041,90951.0,90950.0,0.00016493]
[1765129342155,0.007,90951.0,90950.0,0.68309]
[1765129342342,0.67341,90949.0,90948.0,0.0109943]
[1765129342548,0.007,90951.0,90947.0,0.35295923]
[1765129342549,0.67341,90948.0,90947.0,0.35295923]
[1765129342856,0.67341,90947.0,90946.0,0.0109946]
[1765129343256,0.67341,90941.0,90940.0,0.00099999]
[1765129343457,0.67341,90940.0,90939.0,0.5299554]
[1765129343657,0.67341,90940.0,90939.0,0.9199554]
[1765129344760,0.002,90947.0,90946.0,0.6940846]
[1765129344949,0.002,90947.0,90946.0,1.0540846]
[1765129345151,0.004,90947.0,90946.0,1.0540846]
[1765129345760,0.002,90947.0,90946.0,1.0540846]
[1765129345957,0.00016493,90950.0,90949.0,0.35598]
[1765129346153,0.00016493,90950.0,90949.0,0.76678]
[1765129347160,0.00016493,90950.0,90949.0,1.04678]
[1765129347359,0.00016493,90950.0,90949.0,0.80678]
[1765129347754,0.00216493,90950.0,90949.0,0.80678]
[1765129347957,0.00216493,90950.0,90949.0,1.10678]
[1765129348155,0.00516493,90950.0,90949.0,1.10678]
[1765129348355,0.00516493,90950.0,90949.0,0.78678]
[1765129348655,0.67857493,90950.0,90949.0,0.78678]
[1765129350153,0.00516493,90950.0,90949.0,1.42389]
[1765129350556,0.00516493,90950.0,90949.0,1.65265]
[1765129350762,0.67857493,90950.0,90949.0,1.65265]
[1765129351160,0.67857493,90950.0,90949.0,1.32554]
[1765129351862,0.67857493,90950.0,90949.0,1.23554]
[1765129352064,0.67857493,90950.0,90949.0,0.7408]
[1765129352361,0.67857493,90950.0,90949.0,0.95952]
[1765129352561,0.67857493,90950.0,90949.0,1.3155]
[1765129352764,0.00516493,90950.0,90949.0,1.6455]
[1765129353764,0.00516493,90950.0,90949.0,1.3055]
[1765129354057,0.00516493,90950.0,90949.0,1.5855]
[1765129357064,0.00516493,90950.0,90949.0,1.59651178]
[1765129358067,0.00516493,90950.0,90949.0,1.35651178]
[1765129358563,0.67857493,90950.0,90949.0,1.24651178]
[1765129358765,0.67857493,90950.0,90949.0,1.05490178]
[1765129359068,0.67857493,90950.0,90949.0,1.57350178]
[1765129359365,0.67857493,90950.0,90949.0,2.00350178]
[1765129359366,0.33203493,90950.0,90949.0,2.00350178]
[1765129359560,0.67857493,90950.0,90949.0,1.05490178]
[1765129359767,0.67857493,90950.0,90949.0,1.57350178]
[1765129360869,0.67857493,90950.0,90949.0,1.57346178]
[1765129361558,0.67857493,90950.0,90949.0,1.99346178]
[1765129361871,0.0203,90965.0,90949.0,1.99346178]
[1765129361872,0.34965,90965.0,90964.0,0.7057024]
[1765129362065,0.34965,90965.0,90964.0,1.5942624]
[1765129362455,0.69644,90965.0,90964.0,1.5942624]
[1765129362864,0.70044,90965.0,90964.0,1.5942624]
[1765129363059,0.004,90965.0,90964.0,1.5942624]
[1765129363463,0.00016493,90974.0,90968.0,0.69471]
[1765129363673,0.69644,90988.0,90987.0,0.3580496]
[1765129364169,0.69644,90988.0,90987.0,0.0109896]
[1765129364374,0.19495,90992.0,90980.0,0.36179999]
[1765129364375,0.89139,90981.0,90980.0,0.36179999]
[1765129364566,0.89139,90981.0,90980.0,1.00031999]
[1765129364871,0.89139,90981.0,90980.0,1.29131049]
[1765129365060,0.69644,90989.0,90988.0,0.7056995]
[1765129365258,0.69644,90989.0,90988.0,0.0109895]
[1765129365775,0.69644,90989.0,90977.0,0.03847374]
[1765129365776,0.69644,90972.0,90971.0,0.01115653]
[1765129366664,0.69644,90972.0,90971.0,1.06586653]
[1765129367071,0.69644,90980.0,90979.0,0.7057005]
[1765129367269,0.69644,90980.0,90979.0,0.0109905]
[1765129367473,0.69644,90980.0,90979.0,1.0757005]
[1765129367668,0.69644,90980.0,90979.0,0.7057005]
[1765129367871,0.69644,90980.0,90979.0,0.5294305]
[1765129368371,0.69744,90980.0,90979.0,0.5294305]
[1765129368566,0.69744,90980.0,90979.0,0.55752534]
[1765129369372,0.69844,90980.0,90979.0,0.02809484]
[1765129376063,0.67506,90974.0,90973.0,0.02359224]
[1765129376269,0.67506,90959.0,90958.0,0.04946674]
[1765129376470,1.03586,90959.0,90958.0,0.010993]
[1765129377470,1.03586,90959.0,90958.0,0.017993]
[1765129377981,1.03586,90959.0,90958.0,0.019993]
[1765129378475,1.03586,90959.0,90958.0,0.015993]
[1765129379372,0.70427,90959.0,90958.0,0.710163]
[1765129379574,0.67522493,90968.0,90967.0,0.7051621]
[1765129380275,0.00016493,90968.0,90967.0,0.7051621]
[1765129380671,0.34463493,90968.0,90967.0,0.8151621]
[1765129380871,0.00116493,90968.0,90967.0,1.0751621]
[1765129381077,0.00116493,90968.0,90967.0,1.11363584]
[1765129381278,0.00116493,90968.0,90967.0,1.4359621]
[1765129382082,0.00116493,90968.0,90967.0,1.0751621]
[1765129382280,0.67506,90977.0,90976.0,0.0109909]
[1765129382582,0.67506,90973.0,90972.0,0.3543414]
[1765129383476,0.67506,90966.0,90965.0,0.03829502]
[1765129383666,0.3608,90966.0,90963.0,0.69433493]
[1765129383867,0.3608,90966.0,90965.0,0.69417]
[1765129384067,0.002,90977.0,90976.0,0.69417]
[1765129384278,0.3608,90978.0,90977.0,0.7051609]
[1765129384481,1.03586,90978.0,90977.0,0.7051609]
[1765129384678,0.67506,90971.0,90970.0,0.34335]
[1765129384872,0.67506,90971.0,90970.0,0.97155]
[1765129385066,0.67506,90971.0,90970.0,1.32237]
[1765129385272,0.67506,90971.0,90970.0,0.5182]
[1765129386181,0.34347,90968.0,90967.0,0.705162]
[1765129386475,0.67506,90964.0,90963.0,0.00016493]
[1765129387882,0.67506,90946.0,90945.0,0.03829502]
[1765129388183,0.67506,90945.0,90941.0,0.0109951]
[1765129388385,0.67506,90945.0,90940.0,0.07827041]
[1765129388681,0.67506,90941.0,90940.0,0.07727042]
[1765129389570,0.675197,90941.0,90940.0,0.07727042]
[1765129389976,0.67506,90932.0,90931.0,0.00016493]
[1765129390282,1.03586,90932.0,90931.0,0.00016493]
[1765129390775,1.03586,90932.0,90924.0,0.0109972]
[1765129390776,0.67506,90925.0,90924.0,0.0109972]
[1765129391081,0.67506,90916.0,90915.0,0.3717983]
[1765129391273,0.6751589,90916.0,90915.0,0.3717983]
[1765129391474,0.6751589,90916.0,90915.0,0.8951483]
[1765129391983,0.68083,90911.0,90910.0,0.07727042]
[1765129392174,0.68083,90911.0,90910.0,0.77526042]
[1765129392370,0.68083,90911.0,90910.0,0.37]
[1765129392575,0.68083,90907.0,90906.0,0.32815493]
[1765129392772,0.3608,90915.0,90914.0,0.6905585]
[1765129392974,0.68099493,90925.0,90924.0,0.32799]
[1765129393588,0.68099493,90925.0,90924.0,0.67956]
[1765129393781,0.68083,90923.0,90922.0,0.0109974]
[1765129393982,0.68083,90919.0,90918.0,0.0109979]
[1765129394181,0.68083,90919.0,90918.0,0.0409979]
[1765129394381,0.68083,90919.0,90918.0,0.0109979]
[1765129394576,0.68083,90919.0,90918.0,0.2409979]
[1765129394978,0.68083,90919.0,90918.0,0.0109979]
[1765129395383,0.68083,90919.0,90918.0,0.0179979]
[1765129395681,0.68083,90919.0,90918.0,1.0675579]
[1765129395889,0.3608,90923.0,90922.0,0.6905575]
[1765129396088,0.00016493,90925.0,90924.0,0.67956]
[1765129396283,0.00016493,90925.0,90924.0,1.28675]
[1765129396686,0.3608,90942.0,90941.0,0.67956]
[1765129396986,0.3608,90942.0,90941.0,1.1105552]
[1765129398279,0.3608,90942.0,90941.0,1.1155552]
[1765129399082,0.3608,90942.0,90941.0,1.1165552]
[1765129399796,0.68099493,90951.0,90950.0,0.0109941]
[1765129400774,0.68099493,90951.0,90950.0,0.6905541]
[1765129401187,0.68099493,90951.0,90950.0,1.0805541]
[1765129401389,0.00016493,90951.0,90950.0,1.0815541]
[1765129402590,1.04163,90957.0,90956.0,0.6905534]
[1765129403187,1.04163,90957.0,90956.0,0.0109934]
[1765129403382,1.04163,90957.0,90950.0,0.00199999]
[1765129403383,0.68083,90954.0,90953.0,0.0109937]
[1765129403779,0.68083,90954.0,90953.0,0.4009937]
[1765129404087,0.68083,90954.0,90953.0,0.0909937]
[1765129405988,0.68183,90954.0,90953.0,0.4189837]
[1765129406192,0.68183,90954.0,90953.0,0.3389837]
[1765129406497,0.68183,90954.0,90953.0,0.0109937]
[1765129406692,0.68083,90951.0,90950.0,0.338984]
[1765129407784,0.68083,90951.0,90950.0,0.690554]
[1765129407992,0.68083,90951.0,90950.0,1.050554]
[1765129408198,0.68083,90951.0,90950.0,1.051554]
[1765129408900,1.04163,90957.0,90956.0,0.6905534]
[1765129409190,1.04163,90957.0,90956.0,0.0109934]
[1765129409595,1.04163,90957.0,90951.0,0.0109939]
[1765129409782,1.04163,90957.0,90950.0,0.00199999]
[1765129409783,0.68083,90951.0,90950.0,0.001]
[1765129410188,0.68083,90950.0,90949.0,0.0109942]
[1765129410998,0.68083,90950.0,90949.0,0.6905542]
[1765129411594,0.68083,90941.0,90940.0,0.00099999]
[1765129411900,0.68083,90933.0,90930.0,0.02209791]
[1765129412094,0.68083,90933.0,90932.0,1.04972493]
[1765129412399,0.3608,90936.0,90935.0,0.67956]
[1765129412594,0.00016493,90942.0,90941.0,0.67956]
[1765129412801,0.00016493,90942.0,90941.0,1.1105552]
[1765129413696,0.00016493,90942.0,90941.0,1.0555552]
[1765129414197,0.34831493,90942.0,90941.0,0.6955552]
[1765129414402,0.68099493,90942.0,90941.0,0.5339952]
[1765129414695,0.68099493,90942.0,90941.0,0.005]
[1765129415003,0.68099493,90942.0,90941.0,0.003297]
[1765129415201,0.68083,90933.0,90932.0,0.00016493]
[1765129416307,0.68083,90933.0,90932.0,0.01116493]
[1765129416912,0.68083,90920.0,90919.0,0.3608]
[1765129417110,0.68083,90920.0,90919.0,0.3717979]
[1765129418109,0.68083,90920.0,90919.0,0.3737979]
[1765129418312,0.68083,90920.0,90919.0,0.7017879]
[1765129418508,0.68083,90920.0,90919.0,0.3409879]
[1765129418713,0.34815,90920.0,90919.0,1.0725579]
[1765129418915,0.34815,90920.0,90919.0,1.0755579]
[1765129419116,0.70895,90927.0,90926.0,0.67956]
[1765129419323,0.518,90932.0,90931.0,0.67956]
[1765129419506,0.34815,90932.0,90931.0,0.95956]
[1765129419702,0.68083,90932.0,90931.0,0.9705564]
[1765129420507,0.68083,90932.0,90931.0,0.9725564]
[1765129421817,0.68083,90932.0,90931.0,0.9745564]
[1765129422111,0.70895,90936.0,90935.0,0.6763359]
[1765129422713,1.04458,90936.0,90935.0,0.6763359]
[1765129423722,1.04558,90936.0,90935.0,0.6763359]
[1765129424219,1.04558,90936.0,90935.0,0.6773359]
[1765129427020,0.70995,90936.0,90935.0,0.6773359]
[1765129427415,1.04558,90936.0,90935.0,0.6773359]
[1765129428520,0.3618,90936.0,90935.0,0.6773359]
[1765129429523,0.69044,90936.0,90935.0,0.6773359]
[1765129429826,1.02607,90936.0,90935.0,0.6773359]
[1765129430023,1.02607,90936.0,90935.0,1.0773359]
[1765129431716,1.02607,90936.0,90935.0,0.32899]
[1765129431918,1.02607,90936.0,90935.0,0.001]
[1765129436923,0.67951,90929.0,90928.0,0.03982658]
[1765129437126,0.67951,90929.0,90928.0,0.0109968]
[1765129438227,0.68151,90929.0,90928.0,1.0951668]
[1765129439429,0.68151,90929.0,90928.0,1.12599658]
[1765129439818,0.33698,90929.0,90928.0,1.12599658]
[1765129440018,0.33698,90929.0,90928.0,1.0971668]
[1765129440218,0.68151,90929.0,90928.0,1.0971668]
[1765129440628,0.002,90929.0,90928.0,1.0971668]
[1765129441026,0.68151,90929.0,90928.0,0.0129968]
[1765129441220,0.68151,90929.0,90928.0,0.002]
[1765129442027,0.68151,90929.0,90928.0,1.06617]
[1765129442532,0.002,90929.0,90928.0,1.10464025]
[1765129442733,0.002,90929.0,90928.0,1.12388061]
[1765129442922,0.002,90929.0,90928.0,1.06617]
[1765129444129,0.3608,90951.0,90941.0,0.7051652]
[1765129444333,0.5178,90957.0,90941.0,1.6329252]
[1765129444536,0.3608,90956.0,90941.0,1.6329252]
[1765129444830,0.20945,90954.0,90941.0,1.6329252]
[1765129445525,0.00716493,90942.0,90941.0,1.69060756]
[1765129445726,0.00716493,90942.0,90941.0,1.6329252]
[1765129445727,0.68667493,90942.0,90941.0,1.6329252]
[1765129445926,0.00716493,90942.0,90941.0,1.69060756]
[1765129446126,0.00716493,90942.0,90941.0,1.6329252]
[1765129447037,1.04031,90956.0,90955.0,0.7051635]
[1765129448134,1.05031,90956.0,90955.0,0.3531235]
[1765129448721,1.05131,90956.0,90955.0,0.3531235]
[1765129449131,1.05131,90956.0,90955.0,0.7051635]
[1765129449332,1.05131,90956.0,90955.0,1.1251635]
[1765129449528,0.70678,90956.0,90955.0,1.1251635]
[1765129450329,0.3718,90956.0,90955.0,1.1251635]
[1765129450726,0.70678,90956.0,90955.0,1.1251635]
[1765129450931,1.05131,90956.0,90955.0,1.4928035]
[1765129453341,1.05131,90956.0,90955.0,0.4009935]
[1765129453640,1.05131,90956.0,90955.0,1.0572235]
[1765129454443,0.3718,90956.0,90955.0,1.0572235]
[1765129454942,0.011,90956.0,90955.0,1.0572235]
[1765129455731,0.33829,90956.0,90955.0,1.0572235]
[1765129456238,0.00339292,90960.0,90959.0,0.667223]
[1765129456239,0.33068292,90960.0,90959.0,0.667223]
[1765129456539,0.00339292,90960.0,90959.0,1.047223]
[1765129456938,0.65454292,90960.0,90959.0,0.351883]
[1765129457135,0.65454292,90960.0,90959.0,0.987223]
[1765129457358,0.66054292,90960.0,90959.0,0.987223]
[1765129457638,0.66054292,90960.0,90959.0,0.010993]
[1765129457937,0.66254292,90960.0,90959.0,0.020993]
[1765129458142,0.66254292,90960.0,90959.0,0.310993]
[1765129458728,0.33868292,90960.0,90959.0,0.967223]
[1765129459338,0.33868292,90960.0,90959.0,0.978251]
[1765129459538,0.01139292,90960.0,90959.0,0.978251]
[1765129459932,0.01139292,90960.0,90954.0,0.0109936]
[1765129460240,0.01139292,90960.0,90950.0,0.00116492]
[1765129460241,0.65115,90953.0,90950.0,0.15956812]